[Event "37th ECCC 2022"]
[Site "Mayrhofen"]
[Date "2022.10.04"]
[Round "2.34"]
[White "Maze, Sebastien"]
[Black "Ondersteijn, Niels"]
[Result "1-0"]
[ECO "B07"]
[WhiteElo "2530"]
[BlackElo "2382"]
[Annotator "TA"]
[PlyCount "117"]
[EventDate "2022.10.03"]
[EventType "team-tourn"]
[EventCountry "AUT"]
[SourceTitle "playchess.com"]
[Source "ChessBase"]
[SourceQuality "1"]
[TimeControl "40/5400+30:1800+30"]

{[%evp 9,117,15,38,47,45,41,41,41,41,50,57,11,53,0,18,0,39,29,39,32,32,23,33,29,30,31,32,0,41,41,37,40,49,42,56,46,95,82,84,88,80,57,52,42,42,42,51,29,57,57,57,36,36,-30,-30,-30,0,0,0,0,0,-7,0,0,41,1,14,26,23,13,74,66,174,179,146,156,168,158,158,91,85,11,87,0,457,465,641,641,627,520,516,512,447,283,605,647,620,619,29975,29976,29972,29973,29955,29953,29978,29979,29979,29980,29979,29980]} 1. e4 {[%emt 0:00:03]} d6 {[%emt 0:00:11]} 2. d4 {[%emt 0:00:12]} Nf6 {[%emt 0:00:06]} 3. Nc3 {[%emt 0:00:06]} g6 {[%emt 0:00:07]} 4. h3 {[%emt 0:01:01]} Bg7 {[%emt 0:00:51]} 5. Be3 {[%emt 0:00:06]} a6 {[%emt 0:01:14]} 6. g4 {[%emt 0:00:47][%cal Bg2g4,Bg4g5][%mdl 32] B07: Pirc Defence: Miscellaneous Systems.} h5 {[%emt 0:00:21][%cal Rh5g4]} 7. g5 {[%emt 0:02:12]} Nfd7 {[%emt 0:00:39] [#]} 8. a4 $146 {[%emt 0:04:22] White is slightly better.} ({Predecessor:} 8. Bg2 b5 9. e5 Ra7 10. e6 fxe6 11. Qd3 Nf8 12. Be4 Kf7 13. d5 c5 14. dxc6 {1-0 (45) Bauer,C (2637)-Fressinet,L (2698) Caen 2011}) 8... e6 {[%emt 0:10:35]} 9. f4 {[%emt 0:02:32]} O-O {[%emt 0:04:34]} 10. Nf3 {[%emt 0:01:17]} (10. Bg2 $14 {is superior.}) 10... Nc6 {[%emt 0:12:48][%cal Od6d5,Bb8c6,Bc6e7,Be7f5][%mdl 32]} 11. Be2 {[%emt 0:13:41]} (11. Bg2 $14) 11... Re8 {[%emt 0:05:37]} 12. O-O {[%emt 0:00:55]} d5 {[%emt 0:04:02]} 13. e5 {[%emt 0:00:15]} ({Of course not} 13. exd5 exd5 14. Nxd5 Nf8 $15) 13... Ne7 {[%emt 0:00:29]} 14. a5 {[%emt 0:16:55]} Nf5 {[%emt 0:11:02]} 15. Bf2 {[%emt 0:00:11]} Bf8 {[%emt 0:02:37]} 16. Bd3 {[%emt 0:00:24]} Nb8 {[%emt 0:01:25]} 17. Nb1 {[%emt 0:15:39]} Bd7 {[%emt 0:03:56]} 18. Qe2 {[%emt 0:00:53]} Nc6 {[%emt 0:00:49]} (18... Bb5 $5) 19. c3 {[%emt 0:00:05][%cal Bc2c3,Bc3c4][%mdl 32]} Na7 {[%emt 0:00:17]} 20. b3 {[%emt 0:02:39]} Bb5 {[%emt 0:07:49]} 21. c4 {[%emt 0:07:03]} Bc6 {[%emt 0:01:22]} 22. Rd1 {[%emt 0:02:26]} Bb4 {[%emt 0:02:45]} (22... Ng7 $14 {feels stronger.}) 23. Bxf5 $16 {[%emt 0:03:43]} exf5 {[%emt 0:00:28]} 24. Be1 {[%emt 0:00:54]} Qe7 {[%emt 0:05:44]} 25. c5 {[%emt 0:18:16]} ({But not} 25. Bxb4 Qxb4 26. Nfd2 Nc8 $14) 25... Bb5 {[%emt 0:01:29]} 26. Qe3 {[%emt 0:03:08]} Nc6 {[%emt 0:01:51]} 27. Bxb4 {[%emt 0:00:28]} Nxb4 {[%emt 0:00:03]} 28. Na3 {[%emt 0:00:45] Inhibits Nc2.} Bd7 {[%emt 0:01:42][%cal Ob7b6]} 29. Qc3 {[%emt 0:00:55]} Nc6 {[%emt 0:00:07]} 30. b4 {[%emt 0:00:24]} Nd8 {[%emt 0:00:08]} 31. e6 {[%emt 0:01:48]} ({Better is} 31. Nb1 $14) 31... Nxe6 $11 {[%emt 0:01:10]} 32. Re1 {[%emt 0:00:07]} f6 {[%emt 0:05:19]} 33. gxf6 {[%emt 0:01:17]} Qxf6 {[%emt 0:00:05]} 34. Qd2 {[%emt 0:00:08]} Re7 {[%emt 0:02:30]} 35. Re5 {[%emt 0:00:27]} Rae8 {[%emt 0:01:19]} 36. Kh2 {[%emt 0:00:09]} Nd8 {[%emt 0:03:05]} 37. Rg1 {[%emt 0:00:33]} Nc6 {[%emt 0:03:41]} 38. Nc2 {[%emt 0:00:09][%cal Ba3c2,Bc2e3,Be3d5,Bd5f6][%mdl 32]} Rg7 {[%emt 0:03:30]} 39. Ne3 {[%emt 0:00:52]} Nxe5 {[%emt 0:00:43]} (39... Be6 $11) 40. dxe5 $16 {[%emt 0:01:18]} Qe6 {[%emt 0:02:58] [#]} (40... Qd8 $1 $14) 41. Ng5 $1 $18 {[%emt 0:07:29]} Qc6 {[%emt 0:02:26][%cal Od5d4]} 42. Nxd5 {[%emt 0:00:32] aiming for Nf6+. Pair of Knights!} Kh8 {[%emt 0:01:37]} 43. Nf6 {[%emt 0:02:54][%mdl 1024] White has strong compensation.} Rf8 {[%emt 0:01:57] [#]} 44. Qd4 {[%emt 0:00:32] White is much more active.} (44. Qc3 $142 $1 {[%cal Oe5e6] e6! is the strong threat.} Be6 45. Nf3) 44... Be6 $16 {[%emt 0:05:47][%cal Oc6a4]} 45. Rd1 {[%emt 0:02:01]} ({White should play} 45. Qc3 $16) 45... Re7 {[%emt 0:00:38]} (45... Qa4 $1 $11 {keeps the balance.}) 46. Qc3 {[%emt 0:04:56]} ({White should try} 46. Rd2 $16) 46... b6 $2 {[%emt 0:01:53][%mdl 8192]} (46... Qa4 $11 47. Rg1 Qb3) 47. axb6 $18 {[%emt 0:05:42]} cxb6 {[%emt 0:00:05]} 48. Rd6 {[%emt 0:00:30][%mdl 64] Skewer} Qa4 {[%emt 0:01:33][%cal Ob6c5]} 49. Qd2 {[%emt 0:01:10]} Qa2 {[%emt 0:07:15]} 50. Qxa2 {[%emt 0:00:03]} Bxa2 {[%emt 0:00:01]} 51. Nd7 {[%emt 0:02:19]} Rxd7 {[%emt 0:02:09]} (51... Rd8) 52. Rxd7 {[%emt 0:00:02] c6 would kill now.} bxc5 {[%emt 0:00:24]} 53. bxc5 {[%emt 0:00:01][%mdl 4096] Endgame Threatening mate with c6. KRB-KRN} Bc4 {[%emt 0:01:52]} 54. c6 {[%emt 0:03:21] White mates.} Bb5 {[%emt 0:00:13]} 55. Nh7 {[%emt 0:01:16]} Bxc6 {[%emt 0:01:06]} 56. Nxf8 {[%emt 0:00:15]} Bxd7 {[%emt 0:00:04]} 57. Nxd7 {[%emt 0:00:06]} h4 {[%emt 0:00:42]} 58. Nc5 {[%emt 0:00:31]} a5 {[%emt 0:00:05]} 59. Kg2 {[%emt 0:00:09] Weighted Error Value: White=0.20 (precise) /Black=0.45} 1-0

[Event "37th ECCC 2022"]
[Site "Mayrhofen"]
[Date "2022.10.04"]
[Round "2.35"]
[White "Okkes, Menno"]
[Black "Libiszewski, Fabien"]
[Result "0-1"]
[ECO "E94"]
[WhiteElo "2328"]
[BlackElo "2512"]
[Annotator "TA"]
[PlyCount "104"]
[EventDate "2022.10.03"]
[EventType "team-tourn"]
[EventCountry "AUT"]
[SourceTitle "playchess.com"]
[Source "ChessBase"]
[SourceQuality "1"]
[TimeControl "40/5400+30:1800+30"]

{[%evp 13,103,28,49,0,0,0,0,0,0,0,0,0,0,0,0,0,0,-27,-18,-37,-33,-47,-40,-37,-34,-45,-46,-35,-47,-94,-69,-86,-89,-97,-76,-75,-54,-51,-57,-47,-43,-80,-64,-103,-103,-118,-81,-87,-50,-56,-42,-94,-67,-97,-63,-72,-25,-14,-26,-93,-60,-218,-215,-148,-57,-51,-38,-46,-49,-199,-187,-203,-190,-194,-199,-323,-341,-337,-340,-373,-371,-354,-354,-543,-316,-29992,-29993,-29996,-29997,-29997,-29998,-29999]} 1. Nf3 {[%emt 0:00:11]} Nf6 {[%emt 0:00:12]} 2. c4 {[%emt 0:00:07]} g6 {[%emt 0:00:05]} 3. Nc3 {[%emt 0:00:05]} Bg7 {[%emt 0:00:06]} 4. e4 {[%emt 0:00:07]} d6 {[%emt 0:00:14]} 5. d4 {[%emt 0:00:06]} O-O {[%emt 0:00:13]} 6. Be2 {[%emt 0:00:05]} e5 {[%emt 0:00:20]} 7. O-O {[%emt 0:00:20]} Bg4 {[%emt 0:00:18]} 8. Be3 {[%emt 0:01:36] E94: King's Indian: Classical: 6 Be2 e5 7 0-0: Various Black 7th moves.} (8. d5 $14 {should be considered.}) 8... Bxf3 $11 {[%emt 0:00:37]} 9. Bxf3 {[%emt 0:00:27]} (9. gxf3 Nh5 $15) 9... exd4 $1 {[%emt 0:00:19]} 10. Bxd4 {[%emt 0:01:48] The position is equal.} Nc6 {[%emt 0:00:12]} 11. Be3 {[%emt 0:00:54]} Re8 {[%emt 0:00:09]} 12. Qc2 {[%emt 0:28:47]} Nd7 {[%emt 0:00:26]} 13. Rad1 {[%emt 0:00:32][%cal Oc4c5]} Bxc3 {[%emt 0:00:33]} 14. Qxc3 {[%emt 0:02:47]} Qf6 {[%emt 0:00:06]} 15. Qc1 {[%emt 0:15:42]} Nc5 {[%emt 0:03:59] [#]} 16. Bg5 $146 {[%emt 0:00:29]} ({Predecessor:} 16. Qb1 Qe6 17. Rfe1 Qxc4 18. b3 Qc3 19. Bd2 Qf6 20. Bc1 h5 21. Bb2 Ne5 22. Be2 {0-1 (39) Wojtaszek,R (2705)-Caruana,F (2823) Wijk aan Zee 2021}) 16... Qe6 {[%emt 0:09:31]} 17. Rfe1 {[%emt 0:03:33]} Ne5 {[%emt 0:06:43]} 18. Be2 {[%emt 0:03:48]} Nxe4 {[%emt 0:00:29]} 19. Be3 {[%emt 0:02:55]} a5 {[%emt 0:14:09]} 20. f3 {[%emt 0:03:41]} Nc5 {[%emt 0:00:50]} 21. Bf1 {[%emt 0:00:21]} (21. f4 $15 Nc6 22. Bf3) 21... Qf5 {[%emt 0:02:55]} 22. Qc3 {[%emt 0:02:30] Prevents Ned3.} b6 {[%emt 0:02:30]} 23. b3 {[%emt 0:04:24]} Re7 {[%emt 0:10:58]} 24. a3 {[%emt 0:00:37]} Rae8 {[%emt 0:03:55]} 25. b4 {[%emt 0:03:13]} axb4 {[%emt 0:01:43]} 26. axb4 {[%emt 0:00:05]} Ne6 {[%emt 0:03:56]} 27. Bc1 {[%emt 0:06:29]} h5 {[%emt 0:05:19]} 28. Bb2 {[%emt 0:00:33]} h4 {[%emt 0:04:23][%cal Oh4h3]} 29. Re3 {[%emt 0:01:03]} Qg5 {[%emt 0:03:09]} 30. Kh1 {[%emt 0:08:40]} f5 {[%emt 0:01:25][%cal Oh4h3]} 31. Rde1 {[%emt 0:01:22][%cal Oc4c5]} (31. Rxe5 dxe5 32. Qxe5 Ng7 33. Qd5+ Kh7 $17) 31... Kh7 {[%emt 0:05:58]} 32. Qc2 {[%emt 0:00:53]} ({White should try} 32. Bc1 $15 Qf6 33. c5) 32... Nf4 {[%emt 0:02:42][%cal Oe5d3] Threatens to win with ...Ned3!} 33. c5 {[%emt 0:00:25]} Nd5 {[%emt 0:02:35][%csl LRb4,LRe3]} 34. Rb3 {[%emt 0:02:40]} h3 {[%emt 0:00:21]} (34... f4 $17 35. cxd6 cxd6) 35. cxd6 {[%emt 0:01:36]} cxd6 {[%emt 0:01:21][%cal Ob6b5]} 36. Bc1 {[%emt 0:02:16]} (36. g3 $11 {remains equal.} f4 37. Qf2) 36... hxg2+ {[%emt 0:05:48]} 37. Bxg2 $2 {[%emt 0:00:23]} (37. Qxg2 $15 Qxg2+ 38. Kxg2) 37... Qh4 $19 {[%emt 0:00:43]} 38. Rg1 {[%emt 0:01:25]} Nf4 {[%emt 0:01:47] Black is much more active.} (38... Nxb4 $6 39. Qd2 Nbd3 40. Rxd3 Nxd3 41. Qxd3 $14) (38... f4 $17 {And now ...Rc7 would win.} 39. Qd1 Nf6) 39. Bf1 $1 $15 {[%emt 0:00:33]} Ne6 {[%emt 0:02:40] [#] ...Nd4 is the strong threat. Pair of Knights!} 40. Qd1 {[%emt 0:01:35]} Qd4 $40 {[%emt 0:04:59][%mdl 128] Black is up to no good.} 41. Qc2 {[%emt 0:13:57]} (41. Qe1 $15) 41... Rc7 $19 {[%emt 0:02:03]} 42. Qb1 {[%emt 0:01:32]} Rec8 {[%emt 0:08:50]} ({Stronger than} 42... Qf2 43. Be3 Qxf3+ 44. Bg2 $17) 43. Be3 {[%emt 0:00:51]} Qh4 {[%emt 0:00:39] aiming for ...Nd4.} 44. Bg2 {[%emt 0:04:23]} (44. Be2 {might work better.}) 44... Nd4 {[%emt 0:05:59]} ({Weaker is} 44... Rc2 45. Qe1 Qxe1 46. Rxe1 $17) 45. Bxd4 {[%emt 0:07:16]} Qxd4 {[%emt 0:00:08]} 46. Qb2 {[%emt 0:02:10]} Qf4 {[%emt 0:01:32]} 47. Qf2 {[%emt 0:00:22]} Rc1 {[%emt 0:07:29] Strongly threatening ...R8c2.} ({Not} 47... Rc2 $2 48. Qg3 R8c4 49. Rf1 $19) 48. Rb1 {[%emt 0:00:14]} (48. Bf1 $142) 48... Nd3 {[%emt 0:02:46][%cal Rd3f2]} 49. Qxb6 {[%emt 0:02:40] [#]} (49. Qe2 $19 Rxb1 50. Rxb1 Nxb4 51. Rd1) 49... Rxb1 {[%emt 0:00:30] Black mates.} 50. Rxb1 {[%emt 0:00:47]} Rc1+ {[%emt 0:00:06]} 51. Rxc1 {[%emt 0:00:28]} Qxc1+ {[%emt 0:00:06]} 52. Qg1 {[%emt 0:00:07]} Nf2# {Weighted Error Value: White=0.37/Black=0.15 (very precise)} 0-1

[Event "37th ECCC 2022"]
[Site "Mayrhofen"]
[Date "2022.10.04"]
[Round "2.36"]
[White "Tarlev, Konstantin"]
[Black "Rademakers, Evert"]
[Result "1-0"]
[ECO "B06"]
[WhiteElo "2577"]
[BlackElo "2272"]
[Annotator "TA"]
[PlyCount "51"]
[EventDate "2022.10.03"]
[EventType "team-tourn"]
[EventCountry "AUT"]
[SourceTitle "playchess.com"]
[Source "ChessBase"]
[SourceQuality "1"]
[TimeControl "40/5400+30:1800+30"]

{[%evp 10,50,44,38,50,48,40,27,62,65,78,33,33,19,28,24,76,42,62,62,215,206,212,212,212,208,408,404,820,825,769,758,910,722,783,743,29993,29994,29996,29997,29997,29998,29999]} 1. d4 {[%emt 0:00:04]} g6 {[%emt 0:00:04]} 2. e4 {[%emt 0:00:29]} Bg7 {[%emt 0:00:03]} 3. c4 {[%emt 0:00:28]} d6 {[%emt 0:00:11]} 4. Nc3 {[%emt 0:00:04]} e5 {[%emt 0:00:14]} 5. d5 {[%emt 0:03:02]} a5 {[%emt 0:00:07]} 6. Bd3 {[%emt 0:04:50]} Na6 {[%emt 0:00:35] A42: Modern Defence: Averbakh Variation.} 7. Nge2 {[%emt 0:00:47]} Qh4 {[%emt 0:00:25]} 8. O-O {[%emt 0:19:32]} Nf6 {[%emt 0:00:23] White has an edge.} 9. f3 {[%emt 0:09:42]} Bh6 {[%emt 0:00:35]} 10. a3 {[%emt 0:06:01]} O-O {[%emt 0:08:03]} 11. b4 {[%emt 0:07:54] [#]} Bxc1 $146 {[%emt 0:20:31]} ({Predecessor:} 11... axb4 12. axb4 Bxc1 13. Qxc1 Bd7 14. Rb1 Nh5 15. c5 dxc5 16. Bxa6 Rxa6 17. bxc5 Qe7 {0-1 (37) Bolognese,L (2104)-Lagumina,G (2199) Montesilvano 2021}) 12. Qxc1 {[%emt 0:02:09]} Nh5 {[%emt 0:14:05]} (12... Bd7 $11) 13. c5 {[%emt 0:14:47]} axb4 {[%emt 0:13:44]} 14. axb4 {[%emt 0:00:46]} Nxb4 {[%emt 0:00:13] This costs Black the game.} (14... Bd7 $14) 15. Rxa8 $18 {[%emt 0:00:08]} Nxd3 {[%emt 0:00:06] [#]} 16. Qh6 {[%emt 0:00:58] Threatens to win with g4.} Qe7 {[%emt 0:09:12]} 17. c6 {[%emt 0:03:52] Chess con chili.} bxc6 $2 {[%emt 0:00:26]} (17... Nf6 18. Rb1 Nc5) 18. Rb1 {[%emt 0:04:47] Black must now prevent Rbb8.} c5 {[%emt 0:04:07]} (18... Qd7 $142 19. Rbb8 Re8 20. dxc6 Qxc6) 19. Rbb8 {[%emt 0:00:35]} Qd7 {[%emt 0:00:39]} 20. Nb5 {[%emt 0:04:40][%cal Bc3b5,Bb5a7,Ba7c8,Bc8e7][%mdl 32]} Nhf4 {[%emt 0:00:37]} 21. Nxf4 {[%emt 0:00:13]} exf4 {[%emt 0:00:04]} 22. h4 {[%emt 0:01:53] Threatening mate with Na7.} c4 {[%emt 0:04:31]} 23. Na7 {[%emt 0:01:40] White mates.} c3 {[%emt 0:00:05]} 24. Rxc8 {[%emt 0:00:21][%mdl 64] [#] Back Rank} Rxc8 {[%emt 0:00:02]} 25. Nxc8 {[%emt 0:00:09][%cal Rc8e7]} c2 {[%emt 0:00:06]} 26. Ne7# {[%emt 0:00:03] Weighted Error Value: White=0.10 (very precise) /Black=0.69} 1-0

[Event "37th ECCC 2022"]
[Site "Mayrhofen"]
[Date "2022.10.04"]
[Round "2.37"]
[White "Carlsen, Magnus"]
[Black "Naumann, Alexander"]
[Result "1-0"]
[ECO "C45"]
[WhiteElo "2856"]
[BlackElo "2513"]
[Annotator "TA"]
[PlyCount "59"]
[EventDate "2022.10.03"]
[EventType "team-tourn"]
[EventCountry "AUT"]
[SourceTitle "playchess.com"]
[Source "ChessBase"]
[SourceQuality "1"]
[TimeControl "40/5400+30:1800+30"]

{[%evp 14,59,0,-26,4,0,0,0,0,-33,-44,-33,-36,-54,-58,-52,-61,-58,0,0,0,0,-10,0,-16,-24,0,-33,-35,-33,8,8,136,160,150,147,135,139,327,327,488,281,583,582,565,550,528,488]} 1. e4 {[%emt 0:00:06]} e5 {[%emt 0:00:07]} 2. Nf3 {[%emt 0:00:05]} Nc6 {[%emt 0:00:06]} 3. d4 {[%emt 0:00:22]} exd4 {[%emt 0:00:10]} 4. Nxd4 {[%emt 0:00:06]} Nf6 {[%emt 0:00:46]} 5. Nxc6 {[%emt 0:00:08]} bxc6 {[%emt 0:00:12]} 6. e5 {[%emt 0:00:15]} Qe7 {[%emt 0:00:25]} 7. Qe2 {[%emt 0:00:09]} Nd5 {[%emt 0:00:14]} 8. Nd2 {[%emt 0:00:40]} (8. c4 $5 {[%cal Rc4d5]} Nb6 9. b3 $11) 8... Nf4 {[%emt 0:06:19] C45: Scotch Game.} 9. Qe3 {[%emt 0:01:57]} Nd5 {[%emt 0:02:09]} 10. Qe4 {[%emt 0:03:50]} f6 {[%emt 0:17:11] [#] The position is equal.} 11. c4 $146 {[%emt 0:24:56]} ({Predecessor:} 11. exf6 Nxf6 12. Qxe7+ Bxe7 13. Bd3 O-O 14. O-O d5 15. Nb3 Bd6 16. h3 Nd7 17. Bd2 {½-½ (34) Fier,A (2595)-Gupta,A (2630) Cappelle la Grande 2014}) 11... Nb4 {[%emt 0:17:42] Hoping for ...d5.} 12. Kd1 $1 {[%emt 0:04:48]} (12. a3 $2 d5 13. cxd5 cxd5 $17) 12... Qxe5 {[%emt 0:03:11]} 13. a3 {[%emt 0:00:55]} Qxe4 {[%emt 0:01:17]} 14. Nxe4 {[%emt 0:00:02]} Na6 {[%emt 0:00:20]} 15. b4 {[%emt 0:00:07][%cal Bb2b4,Bb4b5][%mdl 32] Inhibits Nc5.} c5 {[%emt 0:07:12]} (15... Nb8 $15) 16. b5 $11 {[%emt 0:02:14]} Bb7 {[%emt 0:03:17]} 17. Bd3 {[%emt 0:03:02]} Nb8 {[%emt 0:00:08]} (17... f5 $2 18. Ng5 $18) 18. Re1 $36 {[%emt 0:01:05][%csl LRc5,LRf6][%mdl 2048] White wants to mate with Nd6+. White is pushing.} Kf7 {[%emt 0:00:16]} 19. Nc3 {[%emt 0:03:23]} Bd6 {[%emt 0:06:24] Inhibits Bf4.} 20. f4 {[%emt 0:01:08] Inhibits Be5.} (20. Ne4 $5 {[%cal Re4d6]} Bf8 21. Nc3 $11) 20... Bxg2 {[%emt 0:02:28]} 21. Kc2 {[%emt 0:01:44]} g6 {[%emt 0:04:15]} 22. Bb2 {[%emt 0:08:50]} Bxf4 {[%emt 0:06:33] [#]} (22... f5 $11) 23. Re2 $1 $16 {[%emt 0:01:59]} ({But not} 23. Ne4 $6 d5 24. Nxf6 (24. Nxc5 Bd6 $17) 24... d4 $14) 23... Bb7 {[%emt 0:01:51] [#] ...d6 is the strong threat.} 24. Rf1 $1 {[%emt 0:00:39]} g5 {[%emt 0:00:12]} 25. h4 {[%emt 0:01:12][%cal Bh2h4,Bh4g5][%mdl 32] aiming for hxg5. White is more active.} d6 $2 {[%emt 0:11:22] A mistake that costs the game.} (25... h6 $16) 26. hxg5 $18 {[%emt 0:02:42]} Be5 {[%emt 0:00:58]} (26... Bxg5 $2 27. Rfe1 Nc6 28. bxc6 Bxc6 29. Re7+ Kf8 30. Rxc7 $18) (26... fxg5 $142 27. Bc1 Nd7) 27. Ne4 {[%emt 0:03:33]} (27. Nd5 $142 Nd7 28. Nxf6 Nxf6 29. Bxe5 (29. gxf6 Rae8 $17) 29... dxe5 30. Rxe5 (30. gxf6 Rae8 $11)) 27... Nd7 {[%emt 0:01:06]} (27... Bxb2 {is more resistant.} 28. Kxb2 Nd7) 28. Nxf6 {[%emt 0:00:34][%mdl 64] Discovered Attack, Remove Defender, Overworked Piece. White is clearly winning.} Nxf6 {[%emt 0:02:27]} 29. Bxe5 {[%emt 0:00:16]} (29. gxf6 Rae8 30. Bxe5 Rxe5 31. Rxe5 dxe5 $17) 29... dxe5 {[%emt 0:00:06]} 30. Rxe5 {[%emt 0:00:11] Weighted Error Value: White=0.20 (precise) /Black=0.55} ({Stronger than} 30. gxf6 Rae8 31. Bf5 Rhg8 $11) 1-0

[Event "37th ECCC 2022"]
[Site "Mayrhofen"]
[Date "2022.10.04"]
[Round "2.38"]
[White "Roseneck, Jonas"]
[Black "Tari, Aryan"]
[Result "0-1"]
[ECO "D35"]
[WhiteElo "2414"]
[BlackElo "2656"]
[Annotator "TA"]
[PlyCount "86"]
[EventDate "2022.10.03"]
[EventType "team-tourn"]
[EventCountry "AUT"]
[SourceTitle "playchess.com"]
[Source "ChessBase"]
[SourceQuality "1"]
[TimeControl "40/5400+30:1800+30"]

{[%evp 12,86,18,31,4,7,32,20,16,27,17,18,19,23,29,0,3,-34,24,18,53,52,52,53,45,44,52,39,50,0,0,0,0,0,0,-129,-132,-135,-128,-173,-122,-220,-211,-246,-245,-251,-252,-279,-261,-226,-236,-304,-310,-360,-367,-425,-425,-416,-418,-408,-398,-885,-874,-776,-558,-517,-545,-539,-511,-715,-602,-893,-880,-1439,-1372,-1111,-750]} 1. d4 {[%emt 0:00:04]} Nf6 {[%emt 0:00:35]} 2. c4 {[%emt 0:00:08]} e6 {[%emt 0:00:14]} 3. Nf3 {[%emt 0:00:03]} d5 {[%emt 0:00:19]} 4. Nc3 {[%emt 0:00:05]} Nbd7 {[%emt 0:00:18]} 5. cxd5 {[%emt 0:00:41]} exd5 {[%emt 0:00:09]} 6. Bf4 {[%emt 0:00:06]} Bb4 {[%emt 0:04:27]} 7. e3 {[%emt 0:03:08]} Ne4 {[%emt 0:01:29] 7...c5 is not played anymore. D35: Queen's Gambit Declined: Exchange Variation.} 8. Qc2 {[%emt 0:03:42]} g5 {[%emt 0:01:48]} 9. Be5 {[%emt 0:04:14]} Nxe5 {[%emt 0:04:35] The position is equal.} 10. Nxe5 {[%emt 0:05:41] Strongly threatening Qa4+.} c6 {[%emt 0:04:00]} 11. Bd3 {[%emt 0:04:16]} f6 {[%emt 0:05:19]} 12. Nf3 {[%emt 0:09:26]} Qe7 {[%emt 0:03:14] [#]} 13. O-O $146 {[%emt 0:03:57][%cal Rc3e4]} ({Predecessor:} 13. a3 Bxc3+ 14. bxc3 Bf5 15. Nd2 h5 16. a4 Kf7 17. Rb1 b6 18. O-O h4 19. Nxe4 Bxe4 {½-½ (42) Van Bommel,T (1841)-Kolanek,R (1916) LSS email 2014}) 13... Bf5 {[%emt 0:10:27]} 14. Ne1 {[%emt 0:16:24]} Bxc3 {[%emt 0:14:44]} (14... Bg6 $15) 15. bxc3 $11 {[%emt 0:04:02]} Qe6 {[%emt 0:09:30]} 16. c4 $1 {[%emt 0:11:13]} Nd6 {[%emt 0:02:35][%cal Rd5c4]} 17. cxd5 {[%emt 0:04:39]} Qxd5 {[%emt 0:05:16]} 18. Bxf5 {[%emt 0:02:08]} Qxf5 {[%emt 0:00:12]} 19. Qa4 {[%emt 0:06:32]} h5 {[%emt 0:07:33]} 20. d5 {[%emt 0:07:38]} ({White should play} 20. Qa3 $14 Qd5 21. Nd3) 20... Qxd5 {[%emt 0:02:00]} 21. Rd1 {[%emt 0:02:55]} Qc4 {[%emt 0:04:38]} 22. Qa5 {[%emt 0:01:21]} b6 {[%emt 0:02:05]} 23. Qd2 {[%emt 0:05:53]} (23. Qa3 $11 Nb5 24. Qb2) 23... O-O-O $17 {[%emt 0:02:34] aiming for ...Ne4. Black converts the advantage convincingly.} 24. Rc1 {[%emt 0:01:10] [#]} Qa4 {[%emt 0:00:17] Black is much more active.} 25. Nf3 {[%emt 0:01:39]} Kb7 {[%emt 0:02:22]} (25... c5 $19 26. Qb2 g4) 26. Nd4 {[%emt 0:00:41] [#]} (26. Qb2 $17 Ne4 27. Nd4) 26... Nf5 $1 {[%emt 0:01:26][%cal Rf5d4][%mdl 512]} 27. Qc3 {[%emt 0:01:22]} (27. Rfd1 c5) 27... Nxd4 {[%emt 0:00:33]} 28. exd4 {[%emt 0:00:01]} Rxd4 {[%emt 0:01:11]} 29. Rfe1 {[%emt 0:00:31]} Rhd8 {[%emt 0:00:41]} 30. Qf3 {[%emt 0:00:03]} R4d6 {[%emt 0:01:06]} 31. h3 {[%emt 0:00:32]} R8d7 {[%emt 0:03:40]} ({Worse is} 31... Qxa2 32. Re7+ Kb8 33. Rxc6 $17) 32. Qxh5 {[%emt 0:00:25]} Qxa2 {[%emt 0:00:02]} 33. Qh8 {[%emt 0:00:52]} Qb2 {[%emt 0:01:56]} 34. Rb1 {[%emt 0:01:23]} Qc2 {[%emt 0:00:12]} 35. Ra1 {[%emt 0:00:10][%cal Oa1a7] White threatens Rxa7+! and mate.} b5 {[%emt 0:01:24][%cal Bb6b5,Bb5b4][%mdl 32]} 36. Re8 $2 {[%emt 0:00:49]} (36. Qe8 Qf5 37. Qe3) 36... Rd1+ $19 {[%emt 0:00:37] Black is clearly winning.} 37. Rxd1 {[%emt 0:00:26]} Qxd1+ {[%emt 0:01:27][%mdl 4096] Endgame KQR-KQR} 38. Kh2 {[%emt 0:00:00]} Qd6+ {[%emt 0:00:10]} 39. g3 {[%emt 0:00:19]} b4 {[%emt 0:03:17]} 40. Rf8 {[%emt 0:00:31]} Qd4 {[%emt 0:01:29]} 41. Kg1 {[%emt 0:05:20]} Qe5 {[%emt 0:05:37] Inhibits Rb8+. White must now prevent ...Rd1+.} 42. Ra8 {[%emt 0:01:58]} Rd1+ {[%emt 0:03:25]} 43. Kh2 {[%emt 0:00:05]} Rd2 {[%emt 0:00:36] Weighted Error Value: White=0.69/Black=0.17 (very precise)} 0-1